fUST/lending_fUST_20250702
["ID","MTS","AMOUNT","RATE_DAILY","PERIOD"]
[369029241,1751437837913,353.24325202,0.00016438,2]
[369029242,1751437838001,460.0,0.00016438,2]
[369029246,1751437838826,-998.76,0.00016711,2]
[369029247,1751437838836,-500.0,0.00016711,2]
[369029248,1751437838850,-500.0,0.00016711,2]
[369029249,1751437838861,-185.6414461,0.00016711,2]
[369029250,1751437838871,-125.96503192,0.00016712,2]
[369029251,1751437838881,-460.0,0.00016712,2]
[369029252,1751437838890,-460.0,0.00016712,2]
[369029253,1751437838900,-460.0,0.00016712,2]
[369029254,1751437838909,-460.0,0.00016712,2]
[369029255,1751437838920,-460.0,0.00016712,2]
[369029256,1751437838929,-151.0,0.00016712,2]
[369029257,1751437838939,-392.16078526,0.00016712,2]
[369029258,1751437838948,-285.82666957,0.00016712,2]
[369029259,1751437838958,-460.0,0.00016712,2]
[369029260,1751437838967,-460.0,0.00016712,2]
[369029261,1751437838977,-460.0,0.00016712,2]
[369029262,1751437838987,-548.41,0.00016712,2]
[369029263,1751437838996,-460.0,0.00016712,2]
[369029264,1751437839006,-460.0,0.00016712,2]
[369029265,1751437839016,-460.0,0.00016712,2]
[369029266,1751437839035,-460.0,0.00016712,2]
[369029267,1751437839057,-434.0,0.00016712,2]
[369029268,1751437839075,-151.11001471,0.00016712,2]
[369029269,1751437839085,-500.0,0.00016712,2]
[369029270,1751437839098,-500.0,0.00016712,2]
[369029272,1751437839107,-151.0,0.00016712,2]
[369029273,1751437839120,-2783.45,0.00016712,2]
[369029274,1751437839132,-500.0,0.00016712,2]
[369029275,1751437839141,-151.15774069,0.00016712,2]
[369029276,1751437839151,-226.76404455,0.00016712,2]
[369029277,1751437839161,-272.0084284,0.00016712,2]
[369029278,1751437839171,-151.0,0.00016712,2]
[369029279,1751437839181,-538.76,0.00016712,2]
[369029280,1751437839191,-151.0,0.00016712,2]
[369029281,1751437839201,-460.0,0.00016712,2]
[369029282,1751437839211,-460.0,0.00016712,2]
[369029283,1751437839221,-460.0,0.00016712,2]
[369029284,1751437839231,-478.85,0.00016712,2]
[369029285,1751437839241,-908.66,0.00016712,2]
[369029286,1751437839251,-460.0,0.00016712,2]
[369029287,1751437839260,-460.0,0.00016712,2]
[369029288,1751437839270,-518.85,0.00016712,2]
[369029289,1751437839279,-460.0,0.00016712,2]
[369029290,1751437839289,-1798.02,0.00016712,2]
[369029291,1751437839299,-460.0,0.00016712,2]
[369029292,1751437839308,-575.77,0.00016712,2]
[369029293,1751437839318,-476.06,0.00016712,2]
[369029294,1751437839327,-460.0,0.00016712,2]
[369029295,1751437839337,-460.0,0.00016712,2]
[369029296,1751437839347,-460.0,0.00016712,2]
[369029297,1751437839356,-460.0,0.00016712,2]
[369029298,1751437839367,-460.0,0.00016712,2]
[369029299,1751437839376,-460.0,0.00016712,2]
[369029300,1751437839386,-828.83,0.00016712,2]
[369029301,1751437839395,-460.0,0.00016712,2]
[369029302,1751437839405,-460.0,0.00016712,2]
[369029303,1751437839414,-460.0,0.00016712,2]
[369029304,1751437839424,-460.0,0.00016712,2]
[369029305,1751437839434,-460.0,0.00016712,2]
[369029306,1751437839444,-460.0,0.00016712,2]
[369029307,1751437839459,-460.0,0.00016712,2]
[369029308,1751437839470,-1362.4266937,0.00016712,2]
[369029309,1751437839486,-1395.9433063,0.00016712,2]
[369029310,1751437839496,-522.15613724,0.00016712,2]
[369029311,1751437839512,-508.27472518,0.00016712,2]
[369029312,1751437839527,-996.41913758,0.00016712,2]
[369029313,1751437839537,-477.67,0.00016712,2]
[369029314,1751437839547,-635.69,0.00016712,2]
[369029315,1751437839556,-586.37844759,0.00016712,2]
[369029316,1751437839566,-780.16368787,0.00016712,2]
[369029317,1751437839592,-94.74631213,0.00016712,2]
[369029318,1751437839602,-541.71,0.00016712,2]
[369029319,1751437839612,-460.0,0.00016712,2]
[369029320,1751437839623,-460.0,0.00016712,2]
[369029321,1751437839634,-460.0,0.00016712,2]
[369029322,1751437839644,-460.0,0.00016712,2]
[369029323,1751437839656,-650.89,0.00016712,2]
[369029324,1751437839667,-460.0,0.00016712,2]
[369029325,1751437839676,-564.7,0.00016712,2]
[369029326,1751437839685,-460.0,0.00016712,2]
[369029327,1751437839696,-460.0,0.00016712,2]
[369029328,1751437839705,-460.0,0.00016712,2]
[369029329,1751437839715,-874.59,0.00016712,2]
[369029330,1751437839725,-460.0,0.00016712,2]
[369029331,1751437839735,-460.0,0.00016712,2]
[369029332,1751437839744,-460.0,0.00016712,2]
[369029333,1751437839755,-538.43726237,0.00016712,2]
[369029334,1751437839765,-460.0,0.00016712,2]
[369029335,1751437839775,-576.0,0.00016712,2]
[369029336,1751437839785,-553.2,0.00016712,2]
[369029337,1751437839796,-460.0,0.00016712,2]
[369029338,1751437839808,-460.0,0.00016712,2]
[369029339,1751437839817,-460.0,0.00016712,2]
[369029340,1751437839827,-246.12579856,0.00016712,2]
[369029341,1751437839837,-460.0,0.00016712,2]
[369029342,1751437839847,-2579.28,0.00016712,2]
[369029343,1751437839856,-460.0,0.00016712,2]
[369029344,1751437839866,-571.06,0.00016712,2]
[369029345,1751437839875,-460.0,0.00016712,2]
[369029346,1751437839885,-500.0,0.00016712,2]
[369029347,1751437839895,-2513.06,0.00016712,2]
[369029348,1751437839905,-151.0,0.00016712,2]
[369029349,1751437839915,-151.0,0.00016712,2]
[369029350,1751437839924,-153.48649332,0.00016712,2]
[369029351,1751437839934,-460.0,0.00016712,2]
[369029352,1751437839944,-500.0,0.00016712,2]
[369029353,1751437839953,-585.35,0.00016712,2]
[369029354,1751437839963,-151.0,0.00016712,2]
[369029355,1751437839972,-151.0,0.00016712,2]
[369029356,1751437839982,-500.0,0.00016712,2]
[369029357,1751437839992,-600.2,0.00016712,2]
[369029358,1751437840001,-460.0,0.00016712,2]
[369029359,1751437840011,-460.0,0.00016712,2]
[369029360,1751437840021,-498.4,0.00016712,2]
[369029361,1751437840030,-535.65,0.00016712,2]
[369029362,1751437840039,-460.0,0.00016712,2]
[369029363,1751437840049,-460.0,0.00016712,2]
[369029364,1751437840059,-460.0,0.00016712,2]
[369029365,1751437840068,-419.08885865,0.00016712,2]
[369029366,1751437840078,-460.0,0.00016712,2]
[369029367,1751437840088,-1319.97,0.00016712,2]
[369029368,1751437840098,-1434.92,0.00016712,2]
[369029369,1751437840107,-460.0,0.00016712,2]
[369029370,1751437840117,-601.84,0.00016712,2]
[369029371,1751437840128,-460.0,0.00016712,2]
[369029372,1751437840138,-538.88,0.00016712,2]
[369029373,1751437840148,-1285.68,0.00016712,2]
[369029375,1751437840158,-460.0,0.00016712,2]
[369029377,1751437840168,-517.15,0.00016712,2]
[369029379,1751437840178,-460.0,0.00016712,2]
[369029381,1751437840188,-460.0,0.00016712,2]
[369029383,1751437840198,-3801.32,0.00016712,2]
[369029385,1751437840208,-460.0,0.00016712,2]
[369029387,1751437840218,-528.76,0.00016712,2]
[369029389,1751437840228,-460.0,0.00016712,2]
[369029391,1751437840237,-779.0,0.00016739,2]
[369029393,1751437840247,-151.0,0.00016739,2]
[369029396,1751437840258,-506.24588827,0.00016739,2]
[369029398,1751437840269,-607.31710854,0.00016739,2]
[369029400,1751437840279,-500.0,0.00016739,2]
[369029402,1751437840288,-500.0,0.00016739,2]
[369029404,1751437840298,-151.0,0.00016739,2]
[369029406,1751437840308,-500.0,0.00016739,2]
[369029408,1751437840318,-500.0,0.00016739,2]
[369029410,1751437840327,-151.0,0.00016739,2]
[369029412,1751437840338,-151.0,0.00016739,2]
[369029414,1751437840347,-434.0,0.00016739,2]
[369029416,1751437840357,-500.0,0.00016739,2]
[369029418,1751437840368,-608.65901361,0.00016739,2]
[369029420,1751437840378,-155.05062336,0.00016739,2]
[369029422,1751437840388,-500.0,0.00016739,2]
[369029424,1751437840397,-245.11139049,0.00016739,2]
[369029426,1751437840407,-154.80080008,0.00016739,2]
[369029428,1751437840416,-467.66337168,0.00016739,2]
[369029430,1751437840425,-235.44816119,0.00016739,2]
[369029432,1751437840435,-500.0,0.00016739,2]
[369029434,1751437840453,-151.0,0.00016739,2]
[369029435,1751437840464,-500.0,0.00016739,2]
[369029436,1751437840474,-779.0,0.00016767,2]
[369029437,1751437840484,-151.0,0.00016767,2]
[369029438,1751437840493,-500.0,0.00016767,2]
[369029440,1751437840503,-500.0,0.00016767,2]
[369029442,1751437840513,-500.0,0.00016767,2]
[369029444,1751437840523,-151.0,0.00016767,2]
[369029446,1751437840533,-500.0,0.00016767,2]
[369029448,1751437840543,-450.16335821,0.00016767,2]
[369029450,1751437840553,-151.0,0.00016767,2]
[369029452,1751437840564,-151.0,0.00016767,2]
[369029454,1751437840574,-434.0,0.00016767,2]
[369029455,1751437840584,-500.0,0.00016767,2]
[369029456,1751437840594,-500.0,0.00016767,2]
[369029457,1751437840604,-500.0,0.00016767,2]
[369029458,1751437840615,-151.0,0.00016767,2]
[369029459,1751437840628,-500.0,0.00016767,2]
[369029460,1751437840640,-500.0,0.00016773,2]
[369029461,1751437840650,-500.0,0.00016773,2]
[369029462,1751437840661,-500.0,0.00016773,2]
[369029463,1751437840671,-500.0,0.00016773,2]
[369029464,1751437840680,-779.0,0.00016794,2]
[369029465,1751437840691,-151.0,0.00016794,2]
[369029466,1751437840700,-500.0,0.00016794,2]
[369029467,1751437840711,-500.0,0.00016794,2]
[369029468,1751437840721,-500.0,0.00016794,2]
[369029469,1751437840730,-151.0,0.00016794,2]
[369029470,1751437840740,-500.0,0.00016794,2]
[369029471,1751437840750,-151.0,0.00016794,2]
[369029472,1751437840759,-152.64578634,0.00016794,2]
[369029473,1751437840769,-434.0,0.00016794,2]
[369029474,1751437840779,-500.0,0.00016794,2]
[369029475,1751437840789,-500.0,0.00016794,2]
[369029477,1751437840799,-500.0,0.00016794,2]
[369029479,1751437840809,-500.0,0.00016794,2]
[369029481,1751437840819,-151.0,0.000168,2]
[369029483,1751437840829,-658.54303465,0.00016818,2]
[369029485,1751437840839,-779.0,0.00016822,2]
[369029487,1751437840847,-151.0,0.00016822,2]
[369029489,1751437840859,-299.43205625,0.00016822,2]
[369029491,1751437840869,-500.0,0.00016822,2]
[369029493,1751437840879,-500.0,0.00016822,2]
[369029495,1751437840888,-151.0,0.00016822,2]
[369029497,1751437840898,-434.0,0.00016822,2]
[369029499,1751437840912,-404.2764198,0.00016822,2]
[369029502,1751437840923,-500.0,0.00016822,2]
[369029504,1751437840932,-500.0,0.00016822,2]
[369029506,1751437840942,-263.08385609,0.00016822,2]
[369029508,1751437840952,-779.0,0.00016849,2]
[369029510,1751437840962,-161.29810371,0.00016849,2]
[369029512,1751437840972,-500.0,0.00016849,2]
[369029514,1751437840981,-500.0,0.00016849,2]
[369029516,1751437840992,-152.81481507,0.00016849,2]
[369029518,1751437841001,-434.0,0.00016849,2]
[369029520,1751437841011,-500.0,0.00016849,2]
[369029522,1751437841020,-500.0,0.00016849,2]
[369029524,1751437841031,-779.0,0.00016876,2]
[369029526,1751437841040,-211.64031699,0.00016876,2]
[369029528,1751437841050,-434.0,0.00016876,2]
[369029530,1751437841060,-539.33448476,0.00016876,2]
[369029532,1751437841070,-366.84122403,0.00016876,2]
[369029534,1751437841080,-2254.41541695,0.00016896,2]
[369029536,1751437841089,-151.0,0.000169,2]
[369029538,1751437841099,-779.0,0.00016904,2]
[369029540,1751437841109,-434.0,0.00016904,2]
[369029542,1751437841119,-779.0,0.00016931,2]
[369029544,1751437841129,-370.00949379,0.00016931,2]
[369029547,1751437841139,-434.0,0.00016931,2]
[369029549,1751437841149,-779.0,0.00016959,2]
[369029551,1751437841159,-434.0,0.00016959,2]
[369029553,1751437841169,-500.0,0.00016973,2]
[369029555,1751437841180,-500.0,0.00016973,2]
[369029557,1751437841189,-500.0,0.00016973,2]
[369029559,1751437841199,-500.0,0.00016973,2]
[369029561,1751437841209,-500.91575196,0.00016973,2]
[369029563,1751437841219,-332.97884796,0.00016985,2]
[369029565,1751437841228,-460.0,0.00016985,2]
[369029567,1751437841238,-460.0,0.00016985,2]
[369029569,1751437841247,-460.0,0.00016985,2]
[369029571,1751437841257,-460.0,0.00016985,2]
[369029573,1751437841267,-460.0,0.00016985,2]
[369029575,1751437841276,-460.0,0.00016985,2]
[369029577,1751437841286,-460.0,0.00016985,2]
[369029579,1751437841296,-1030.54,0.00016985,2]
[369029581,1751437841305,-1143.07,0.00016985,2]
[369029583,1751437841315,-546.13,0.00016985,2]
[369029585,1751437841324,-719.67,0.00016985,2]
[369029587,1751437841333,-460.0,0.00016985,2]
[369029589,1751437841343,-460.0,0.00016985,2]
[369029591,1751437841353,-1533.94,0.00016985,2]
[369029593,1751437841362,-787.2,0.00016985,2]
[369029595,1751437841372,-474.54,0.00016985,2]
[369029597,1751437841381,-1172.04,0.00016985,2]
[369029599,1751437841391,-3821.73,0.00016985,2]
[369029601,1751437841402,-998.76,0.00016985,2]
[369029603,1751437841411,-779.0,0.00016986,2]
[369029605,1751437841421,-434.0,0.00016986,2]
[369029607,1751437841432,-215.96637002,0.00016986,2]
[369029609,1751437841441,-460.0,0.00016986,2]
[369029611,1751437841451,-500.0,0.00016986,2]
[369029612,1751437841460,-460.0,0.00016986,2]
[369029613,1751437841469,-460.0,0.00016986,2]
[369029614,1751437841479,-460.0,0.00016986,2]
[369029615,1751437841488,-151.0,0.00016986,2]
[369029616,1751437841498,-438.4690602,0.00016986,2]
[369029617,1751437841508,-460.0,0.00016986,2]
[369029624,1751437841725,-460.0,0.00016986,2]
[369029626,1751437841736,-460.0,0.00016986,2]
[369029628,1751437841745,-240.63102813,0.00016986,2]
[369029630,1751437841755,-460.0,0.00016986,2]
[369029633,1751437841764,-460.0,0.00016986,2]
[369029635,1751437841774,-590.31,0.00016986,2]
[369029637,1751437841784,-460.0,0.00016986,2]
[369029639,1751437841793,-460.0,0.00016986,2]
[369029641,1751437841803,-460.0,0.00016986,2]
[369029643,1751437841812,-460.0,0.00016986,2]
[369029645,1751437841821,-460.0,0.00016986,2]
[369029646,1751437841831,-460.0,0.00016986,2]
[369029649,1751437841840,-460.0,0.00016986,2]
[369029651,1751437841850,-460.0,0.00016986,2]
[369029653,1751437841859,-460.0,0.00016986,2]
[369029655,1751437841868,-206.4220441,0.00016986,2]
[369029656,1751437841878,-460.0,0.00016986,2]
[369029658,1751437841887,-623.42,0.00016986,2]
[369029661,1751437841897,-460.0,0.00016986,2]
[369029663,1751437841906,-460.0,0.00016986,2]
[369029664,1751437841915,-460.0,0.00016986,2]
[369029666,1751437841924,-460.0,0.00016986,2]
[369029668,1751437841934,-460.0,0.00016986,2]
[369029670,1751437841943,-460.0,0.00016986,2]
[369029672,1751437841953,-558.35,0.00016986,2]
[369029674,1751437841962,-460.0,0.00016986,2]
[369029676,1751437841971,-460.0,0.00016986,2]
[369029678,1751437841981,-474.64349351,0.00016986,2]
[369029681,1751437841991,-460.0,0.00016986,2]
[369029683,1751437842000,-460.0,0.00016986,2]
[369029685,1751437842010,-460.0,0.00016986,2]
[369029686,1751437842019,-460.0,0.00016986,2]
[369029688,1751437842028,-460.0,0.00016986,2]
[369029690,1751437842037,-607.42,0.00016986,2]
[369029692,1751437842047,-460.0,0.00016986,2]
[369029694,1751437842056,-460.0,0.00016986,2]
[369029696,1751437842065,-460.0,0.00016986,2]
[369029699,1751437842074,-460.0,0.00016986,2]
[369029701,1751437842084,-460.0,0.00016986,2]
[369029703,1751437842093,-460.0,0.00016986,2]
[369029705,1751437842103,-460.0,0.00016986,2]
[369029707,1751437842112,-525.0,0.00016986,2]
[369029709,1751437842121,-460.0,0.00016986,2]
[369029711,1751437842130,-460.0,0.00016986,2]
[369029713,1751437842139,-460.0,0.00016986,2]
[369029714,1751437842149,-547.82,0.00016986,2]
[369029716,1751437842158,-460.0,0.00016986,2]
[369029718,1751437842167,-460.0,0.00016986,2]
[369029720,1751437842176,-460.0,0.00016986,2]
[369029722,1751437842186,-460.0,0.00016986,2]
[369029724,1751437842195,-460.0,0.00016986,2]
[369029726,1751437842204,-460.0,0.00016986,2]
[369029728,1751437842213,-460.0,0.00016986,2]
[369029730,1751437842223,-548.41,0.00016986,2]
[369029732,1751437842232,-460.0,0.00016986,2]
[369029734,1751437842242,-460.0,0.00016986,2]
[369029736,1751437842251,-460.0,0.00016986,2]
[369029738,1751437842260,-460.0,0.00016986,2]
[369029740,1751437842270,-2783.45,0.00016986,2]
[369029742,1751437842279,-460.0,0.00016986,2]
[369029744,1751437842289,-266.94393791,0.00016986,2]
[369029746,1751437842298,-460.0,0.00016986,2]
[369029748,1751437842307,-478.85,0.00016986,2]
[369029751,1751437842319,-908.66,0.00016986,2]
[369029753,1751437842328,-460.0,0.00016986,2]
[369029755,1751437842338,-518.85,0.00016986,2]
[369029757,1751437842347,-460.0,0.00016986,2]
[369029759,1751437842357,-460.0,0.00016986,2]
[369029762,1751437842377,-1798.02,0.00016986,2]
[369029764,1751437842388,-460.0,0.00016986,2]
[369029766,1751437842397,-575.77,0.00016986,2]
[369029768,1751437842408,-476.06,0.00016986,2]
[369029770,1751437842417,-460.0,0.00016986,2]
[369029772,1751437842428,-460.0,0.00016986,2]
[369029774,1751437842438,-460.0,0.00016986,2]
[369029776,1751437842448,-286.15,0.00016986,2]
[369029778,1751437842458,-460.0,0.00016986,2]
[369029780,1751437842468,-460.0,0.00016986,2]
[369029783,1751437842478,-828.83,0.00016986,2]
[369029785,1751437842488,-460.0,0.00016986,2]
[369029787,1751437842498,-460.0,0.00016986,2]
[369029789,1751437842507,-460.0,0.00016986,2]
[369029791,1751437842517,-460.0,0.00016986,2]
[369029793,1751437842527,-467.24816002,0.00016986,2]
[369029795,1751437842536,-460.0,0.00016986,2]
[369029797,1751437842546,-460.0,0.00016986,2]
[369029799,1751437842556,-2758.37,0.00016986,2]
[369029801,1751437842566,-2026.85,0.00016986,2]
[369029803,1751437842575,-477.67,0.00016986,2]
[369029805,1751437842585,-635.69,0.00016986,2]
[369029807,1751437842595,-874.91,0.00016986,2]
[369029809,1751437842605,-460.0,0.00016986,2]
[369029811,1751437842615,-650.89,0.00016986,2]
[369029813,1751437842628,-564.7,0.00016986,2]
[369029815,1751437842639,-460.0,0.00016986,2]
[369029817,1751437842649,-460.0,0.00016986,2]
[369029819,1751437842659,-874.59,0.00016986,2]
[369029821,1751437842670,-460.0,0.00016986,2]
[369029823,1751437842680,-460.0,0.00016986,2]
[369029825,1751437842689,-460.0,0.00016986,2]
[369029827,1751437842701,-460.0,0.00016986,2]
[369029829,1751437842711,-576.0,0.00016986,2]
[369029831,1751437842721,-553.2,0.00016986,2]
[369029833,1751437842731,-460.0,0.00016986,2]
[369029835,1751437842740,-460.0,0.00016986,2]
[369029837,1751437842750,-460.0,0.00016986,2]
[369029839,1751437842760,-2579.28,0.00016986,2]
[369029841,1751437842770,-518.74033963,0.00016986,2]
[369029843,1751437842780,-571.06,0.00016986,2]
[369029845,1751437842790,-460.0,0.00016986,2]
[369029847,1751437842800,-2513.06,0.00016986,2]
[369029849,1751437842810,-460.0,0.00016986,2]
[369029851,1751437842820,-585.35,0.00016986,2]
[369029853,1751437842831,-600.2,0.00016986,2]
[369029855,1751437842840,-460.0,0.00016986,2]
[369029858,1751437842850,-460.0,0.00016986,2]
[369029860,1751437842860,-498.4,0.00016986,2]
[369029862,1751437842870,-535.65,0.00016986,2]
[369029864,1751437842880,-460.0,0.00016986,2]
[369029866,1751437842890,-460.0,0.00016986,2]
[369029868,1751437842899,-460.0,0.00016986,2]
[369029870,1751437842909,-475.76138546,0.00016986,2]
[369029872,1751437842918,-1319.97,0.00016986,2]
[369029874,1751437842928,-1434.92,0.00016986,2]
[369029876,1751437842938,-460.0,0.00016986,2]
[369029878,1751437842948,-601.84,0.00016986,2]
[369029880,1751437842958,-460.0,0.00016986,2]
[369029882,1751437842968,-538.88,0.00016986,2]
[369029884,1751437842978,-1285.68,0.00016986,2]
[369029886,1751437842988,-460.0,0.00016986,2]
[369029888,1751437842998,-517.15,0.00016986,2]
[369029890,1751437843007,-460.0,0.00016986,2]
[369029892,1751437843017,-460.0,0.00016986,2]
[369029894,1751437843027,-460.0,0.00016986,2]
[369029896,1751437843037,-528.76,0.00016986,2]
[369029898,1751437843047,-3801.32,0.00016986,2]
[369029900,1751437843056,-460.0,0.00016986,2]
[369029902,1751437843066,-151.0,0.00017,2]
[369029904,1751437843076,-779.0,0.00017013,2]
[369029906,1751437843086,-434.0,0.00017013,2]
[369029908,1751437843096,-779.0,0.00017041,2]
[369029910,1751437843105,-434.0,0.00017041,2]
[369029912,1751437843115,-779.0,0.00017068,2]
[369029915,1751437843125,-434.0,0.00017068,2]
[369029918,1751437843134,-779.0,0.00017096,2]
[369029920,1751437843144,-434.0,0.00017096,2]
[369029922,1751437843154,-151.0,0.000171,2]
[369029925,1751437843163,-779.0,0.00017123,2]
[369029928,1751437843173,-434.0,0.00017123,2]
[369029930,1751437843183,-779.0,0.0001715,2]
[369029932,1751437843193,-434.0,0.0001715,2]
[369029934,1751437843202,-779.0,0.00017178,2]
[369029936,1751437843211,-434.0,0.00017178,2]
[369029937,1751437843221,-151.0,0.000172,2]
[369029939,1751437843230,-779.0,0.00017205,2]
[369029941,1751437843240,-434.0,0.00017205,2]
[369029943,1751437843250,-779.0,0.00017233,2]
[369029945,1751437843260,-434.0,0.00017233,2]
[369029947,1751437843269,-460.0,0.00017259,2]
[369029949,1751437843280,-460.0,0.00017259,2]
[369029951,1751437843290,-460.0,0.00017259,2]
[369029953,1751437843299,-460.0,0.00017259,2]
[369029955,1751437843309,-460.0,0.00017259,2]
[369029957,1751437843319,-460.0,0.00017259,2]
[369029959,1751437843328,-460.0,0.00017259,2]
[369029963,1751437843338,-1030.54,0.00017259,2]
[369029965,1751437843348,-1143.07,0.00017259,2]
[369029967,1751437843358,-546.13,0.00017259,2]
[369029969,1751437843368,-719.67,0.00017259,2]
[369029970,1751437843377,-460.0,0.00017259,2]
[369029973,1751437843387,-460.0,0.00017259,2]
[369029974,1751437843396,-1533.94,0.00017259,2]
[369029976,1751437843406,-787.2,0.00017259,2]
[369029978,1751437843415,-474.54,0.00017259,2]
[369029981,1751437843426,-1172.04,0.00017259,2]
[369029983,1751437843436,-3821.73,0.00017259,2]
[369029986,1751437843451,-998.76,0.00017259,2]
[369029988,1751437843461,-779.0,0.0001726,2]
[369029990,1751437843471,-434.0,0.0001726,2]
[369029992,1751437843481,-460.0,0.0001726,2]
[369029994,1751437843491,-460.0,0.0001726,2]
[369029996,1751437843500,-460.0,0.0001726,2]
[369029998,1751437843510,-460.0,0.0001726,2]
[369030000,1751437843519,-460.0,0.0001726,2]
[369030002,1751437843529,-460.0,0.0001726,2]
[369030004,1751437843539,-460.0,0.0001726,2]
[369030006,1751437843549,-460.0,0.0001726,2]
[369030008,1751437843558,-590.31,0.0001726,2]
[369030010,1751437843568,-430.83240672,0.0001726,2]
[369030012,1751437843578,-460.0,0.0001726,2]
[369030014,1751437843587,-460.0,0.0001726,2]
[369030016,1751437843597,-161.47060421,0.0001726,2]
[369030019,1751437843606,-460.0,0.0001726,2]
[369030021,1751437843616,-460.0,0.0001726,2]
[369030023,1751437843629,-460.0,0.0001726,2]
[369030025,1751437843639,-460.0,0.0001726,2]
[369030027,1751437843649,-623.42,0.0001726,2]
[369030029,1751437843658,-460.0,0.0001726,2]
[369030032,1751437843670,-460.0,0.0001726,2]
[369030034,1751437843680,-460.0,0.0001726,2]
[369030036,1751437843689,-460.0,0.0001726,2]
[369030037,1751437843699,-460.0,0.0001726,2]
[369030039,1751437843709,-558.35,0.0001726,2]
[369030040,1751437843719,-198.17777512,0.0001726,2]
[369030042,1751437843728,-460.0,0.0001726,2]
[369030045,1751437843739,-460.0,0.0001726,2]
[369030046,1751437843749,-460.0,0.0001726,2]
[369030048,1751437843758,-460.0,0.0001726,2]
[369030051,1751437843768,-460.0,0.0001726,2]
[369030053,1751437843778,-607.42,0.0001726,2]
[369030054,1751437843788,-460.0,0.0001726,2]
[369030056,1751437843799,-559.02059773,0.0001726,2]
[369030059,1751437843809,-460.0,0.0001726,2]
[369030060,1751437843818,-460.0,0.0001726,2]
[369030063,1751437843828,-460.0,0.0001726,2]
[369030064,1751437843839,-460.0,0.0001726,2]
[369030067,1751437843848,-460.0,0.0001726,2]
[369030069,1751437843858,-525.0,0.0001726,2]
[369030071,1751437843867,-460.0,0.0001726,2]
[369030073,1751437843877,-460.0,0.0001726,2]
[369030075,1751437843887,-460.0,0.0001726,2]
[369030077,1751437843896,-547.82,0.0001726,2]
[369030079,1751437843906,-460.0,0.0001726,2]
[369030082,1751437843916,-460.0,0.0001726,2]
[369030084,1751437843926,-460.0,0.0001726,2]
[369030086,1751437843935,-460.0,0.0001726,2]
[369030088,1751437843945,-460.0,0.0001726,2]
[369030090,1751437843955,-460.0,0.0001726,2]
[369030093,1751437843964,-548.41,0.0001726,2]
[369030096,1751437843974,-460.0,0.0001726,2]
[369030099,1751437843984,-460.0,0.0001726,2]
[369030101,1751437843995,-460.0,0.0001726,2]
[369030103,1751437844005,-460.0,0.0001726,2]
[369030105,1751437844015,-2783.45,0.0001726,2]
[369030107,1751437844024,-339.48290489,0.0001726,2]